bitfinex-derivatives/quotes_SOLF0:USTF0_20250318
["timestamp","ask_amount","ask_price","bid_price","bid_amount"]
[1742267344870,13.27163943,124.57,124.56,3.649e-05]
[1742267345563,43.23163943,124.57,124.56,3.649e-05]
[1742267345768,37.9882,124.57,124.56,3.649e-05]
[1742267348971,8.0279,124.58,124.56,3.649e-05]
[1742267349364,8.0281,124.58,124.56,3.649e-05]
[1742267350666,0.05212751,124.6,124.56,3.649e-05]
[1742267351174,8.0282,124.57,124.56,3.649e-05]
[1742267352774,8.0279,124.58,124.56,3.649e-05]
[1742267353073,0.05212751,124.6,124.56,3.649e-05]
[1742267353469,8.0274,124.59,124.56,3.649e-05]
[1742267354171,0.05212751,124.6,124.56,3.649e-05]
[1742267354475,0.05212751,124.6,124.56,46.62008821]
[1742267354876,8.07842751,124.6,124.56,46.62008821]
[1742267355175,0.05212751,124.6,124.56,46.62008821]
[1742267355477,8.028,124.58,124.56,46.62008821]
[1742267355675,8.028,124.58,124.56,29.92003649]
[1742267356075,8.0273,124.59,124.56,29.92003649]
[1742267356479,0.05212751,124.6,124.56,46.62008821]
[1742267357369,8.0274,124.59,124.56,46.62008821]
[1742267357877,0.05212751,124.6,124.56,46.62008821]
[1742267358576,0.05212751,124.6,124.58,16.70005172]
[1742267359175,8.475,124.66,124.59,40.30925526]
[1742267359383,4.2531,124.66,124.61,10.42925526]
[1742267359577,5.29868452,124.65,124.61,10.42925526]
[1742267359879,8.024,124.64,124.61,10.42925526]
[1742267360379,8.08342149,124.64,124.61,10.490579]
[1742267360977,8.08342149,124.64,124.63,10.42925526]
[1742267360978,0.05942149,124.64,124.63,10.42925526]
[1742267361176,0.05942149,124.64,124.62,16.67633115]
[1742267361372,8.08342149,124.64,124.62,16.67633115]
[1742267361884,0.05942149,124.64,124.61,4.31052374]
[1742267362379,8.0248,124.63,124.61,4.31052374]
[1742267363168,8.08342149,124.64,124.61,4.31052374]
[1742267363374,0.05942149,124.64,124.61,4.31052374]
[1742267364478,0.05942149,124.64,124.61,0.06132374]
[1742267364885,8.025,124.62,124.61,0.06132374]
[1742267365979,37.825,124.62,124.61,2.374e-05]
[1742267368282,8.025,124.62,124.61,2.374e-05]
[1742267370982,37.825,124.62,124.61,2.374e-05]
[1742267371887,43.11006043,124.62,124.61,2.374e-05]
[1742267374485,8.025,124.62,124.61,2.374e-05]
[1742267377785,13.31891256,124.62,124.61,2.374e-05]
[1742267380094,17.4429068,124.62,124.61,2.374e-05]
[1742267380393,13.31891256,124.62,124.61,2.374e-05]
[1742267380788,17.44268609,124.62,124.61,2.374e-05]
[1742267380991,13.31891256,124.62,124.61,2.374e-05]
[1742267381290,42.13884103,124.62,124.61,2.374e-05]
[1742267381683,17.44250988,124.62,124.61,2.374e-05]
[1742267383696,13.31891256,124.62,124.61,2.374e-05]
[1742267383895,17.44213197,124.62,124.61,2.374e-05]
[1742267384289,17.4427506,124.62,124.61,2.374e-05]
[1742267384495,13.31891256,124.62,124.61,2.374e-05]
[1742267389593,8.025,124.62,124.61,2.374e-05]
[1742267391600,13.33304777,124.62,124.61,2.374e-05]
[1742267391800,17.46559522,124.62,124.61,2.374e-05]
[1742267392396,17.46715348,124.62,124.61,2.374e-05]
[1742267392592,17.46719421,124.62,124.61,2.374e-05]
[1742267395807,13.33304777,124.62,124.61,2.374e-05]
[1742267397907,5.30804777,124.62,124.61,2.374e-05]
[1742267398208,5.30804777,124.62,124.61,29.64002374]
[1742267398404,0.05942149,124.64,124.62,8.0246]
[1742267398606,0.05942149,124.64,124.63,10.43614367]
[1742267399304,8.08312149,124.64,124.63,10.43614367]
[1742267399710,0.05942149,124.64,124.63,10.43614367]
[1742267401412,0.05942149,124.64,124.63,18.46044367]
[1742267401610,0.05942149,124.64,124.63,10.43614367]
[1742267403713,0.05942149,124.64,124.63,18.46044367]
[1742267404010,0.05942149,124.64,124.63,24.52750615]
[1742267404612,8.0215,124.68,124.63,24.52320615]
[1742267404812,8.0215,124.68,124.67,10.43614367]
[1742267405412,4.0583,124.74,124.67,39.99614367]
[1742267405608,33.6183,124.74,124.7,10.43614367]
[1742267405910,0.0517846,124.72,124.68,10.43614367]
[1742267406111,0.0517846,124.72,124.71,0.05498777]
[1742267406304,8.0703846,124.72,124.71,8.777e-05]
[1742267413815,8.0237,124.64,124.63,0.2306272]
[1742267414016,29.86,124.64,124.62,57.56269098]
[1742267414211,40.29614367,124.64,124.61,77.41666729]
[1742267414412,8.025,124.62,124.61,77.41666729]
[1742267414808,8.025,124.62,124.61,25.51086729]
[1742267415014,8.025,124.62,124.61,6.729e-05]
[1742267416918,8.0256,124.61,124.6,0.05759603]
[1742267417218,37.9256,124.61,124.6,0.05759603]
[1742267417719,37.9256,124.61,124.6,9.603e-05]
[1742267428235,8.0256,124.61,124.6,9.603e-05]
[1742267436346,20.15223712,124.61,124.6,9.603e-05]
[1742267437445,12.13223712,124.61,124.6,9.603e-05]
[1742267437943,20.15223712,124.61,124.6,9.603e-05]
[1742267438652,12.13223712,124.61,124.6,9.603e-05]
[1742267438844,8.0256,124.61,124.6,9.603e-05]
[1742267444049,8.0253,124.62,124.6,9.603e-05]
[1742267444245,8.3949,124.71,124.61,10.43614367]
[1742267444551,8.0228,124.66,124.63,10.43614367]
[1742267444756,8.0228,124.66,124.63,40.13614367]
[1742267445258,29.7,124.69,124.63,40.13614367]
[1742267445458,0.0505417,124.66,124.63,40.18739486]
[1742267445757,0.0505417,124.66,124.65,10.43614367]
[1742267445958,4.2201,124.72,124.65,10.43614367]
[1742267446160,8.0206,124.69,124.67,10.43614367]
[1742267446456,29.7,124.72,124.67,10.43614367]
[1742267446656,8.0206,124.69,124.67,10.43614367]
[1742267447459,8.0206,124.69,124.67,10.48803065]
[1742267447460,8.07524603,124.69,124.67,10.48803065]
[1742267447959,8.0211,124.68,124.67,10.48803065]
[1742267448662,0.05464603,124.69,124.67,10.48803065]
[1742267449562,0.05464603,124.69,124.67,14.65223065]
[1742267450861,8.07544603,124.69,124.67,14.65223065]
[1742267452159,0.05464603,124.69,124.67,14.65223065]
[1742267453165,8.07544603,124.69,124.67,14.65223065]
[1742267453766,0.05464603,124.69,124.67,14.65223065]
[1742267455061,0.05464603,124.69,124.67,22.67373065]
[1742267456468,0.05464603,124.69,124.68,8.0211]
[1742267459867,0.05464603,124.69,124.68,18.45724367]
[1742267460069,0.05464603,124.69,124.68,8.0211]
[1742267460269,29.48,124.76,124.7,8.0195]
[1742267460469,8.0169,124.75,124.71,4.4152]
[1742267461170,363.0,124.78,124.74,10.43614367]
[1742267461469,0.05252984,124.77,124.75,0.05186696]
[1742267461668,12.6669,124.83,124.76,10.43614367]
[1742267461867,39.95614367,124.88,124.8,10.43614367]
[1742267462065,0.05593843,124.81,124.8,10.43614367]
[1742267462266,8.0118,124.83,124.8,10.43614367]
[1742267462467,0.06100367,124.82,124.8,10.43614367]
[1742267462665,0.06100367,124.82,124.8,18.44944367]
[1742267462860,0.06100367,124.82,124.8,10.43614367]
[1742267463568,33.801,124.88,124.8,20.87228734]
[1742267463767,33.801,124.88,124.83,10.43614367]
[1742267464169,33.801,124.88,124.8,39.95614367]
[1742267464472,10.43614367,124.87,124.78,19.00524367]
[1742267464668,0.03714855,124.85,124.83,6.856e-05]
[1742267464872,29.52,124.84,124.83,6.856e-05]
[1742267465369,37.5308,124.84,124.83,6.856e-05]
[1742267466671,8.0108,124.84,124.83,6.856e-05]
[1742267470876,20.315,124.84,124.83,6.856e-05]
[1742267471875,12.295,124.84,124.83,6.856e-05]
[1742267472678,37.4908,124.84,124.83,6.856e-05]
[1742267479386,8.0108,124.84,124.83,6.856e-05]
[1742267485196,37.3508,124.84,124.83,6.856e-05]
[1742267488600,41.45821117,124.84,124.83,6.856e-05]
[1742267489297,37.3508,124.84,124.83,6.856e-05]
[1742267489503,41.46057618,124.84,124.83,6.856e-05]
[1742267490602,41.46295657,124.84,124.83,6.856e-05]
[1742267492994,12.12295657,124.84,124.83,6.856e-05]
[1742267493199,8.0108,124.84,124.83,6.856e-05]
[1742267494407,8.04774855,124.85,124.83,6.856e-05]
[1742267497205,8.0108,124.84,124.83,6.856e-05]
[1742267498406,8.04764855,124.85,124.83,6.856e-05]
[1742267499407,8.0108,124.84,124.83,6.856e-05]
[1742267500606,37.3108,124.84,124.83,6.856e-05]
[1742267501413,41.43466706,124.84,124.83,6.856e-05]
[1742267505710,41.44407922,124.84,124.83,6.856e-05]
[1742267512812,12.14407922,124.84,124.83,6.856e-05]
[1742267515017,12.14700438,124.84,124.83,6.856e-05]
[1742267524421,377.57234805,124.84,124.74,10.43614367]
[1742267524625,10.43614367,124.82,124.74,10.43614367]
[1742267524822,33.43620438,124.81,124.74,10.43614367]
[1742267525025,8.0166,124.75,124.74,10.43614367]
[1742267525421,45.3307,124.77,124.71,12.5865]
[1742267525629,4.18367086,124.76,124.73,1.811e-05]
[1742267525832,0.05138498,124.76,124.73,1.811e-05]
[1742267526022,8.0173,124.74,124.73,1.811e-05]
[1742267526218,37.3173,124.74,124.73,1.811e-05]
[1742267526419,41.44608474,124.74,124.73,1.811e-05]
[1742267528027,37.3173,124.74,124.73,1.811e-05]
[1742267528525,8.0173,124.74,124.73,1.811e-05]
[1742267528925,8.017,124.75,124.73,1.811e-05]
[1742267529326,8.017,124.75,124.74,10.43614367]
[1742267529929,29.35138498,124.76,124.73,8.30061811]
[1742267530328,8.0173,124.74,124.73,8.30061811]
[1742267534433,8.0169,124.75,124.73,8.30061811]
[1742267534632,8.0169,124.75,124.74,10.43614367]
[1742267534834,0.05138498,124.76,124.74,10.43614367]
[1742267535034,0.05138498,124.76,124.74,14.83424367]
[1742267535735,8.06778498,124.76,124.74,14.83424367]
[1742267536533,8.0166,124.75,124.74,14.83424367]
[1742267537532,0.05138498,124.76,124.73,1.811e-05]
[1742267537729,29.3,124.75,124.73,1.811e-05]
[1742267538036,8.0173,124.74,124.73,1.811e-05]
[1742267539636,29.3,124.75,124.73,1.811e-05]
[1742267539637,8.0171,124.75,124.73,1.811e-05]
[1742267539830,8.0171,124.75,124.74,10.43614367]
[1742267540033,0.05138498,124.76,124.74,10.43614367]
[1742267540332,8.06788498,124.76,124.74,10.43614367]
[1742267540526,0.05138498,124.76,124.73,1.811e-05]
[1742267541928,8.0173,124.74,124.73,1.811e-05]
[1742267543740,8.017,124.75,124.73,1.811e-05]
[1742267544039,0.05138498,124.76,124.74,10.43614367]
[1742267544540,8.0166,124.75,124.74,10.43614367]
[1742267546337,8.06758498,124.76,124.74,10.43614367]
[1742267546540,8.06758498,124.76,124.74,14.59914367]
[1742267546838,0.05138498,124.76,124.74,22.61604367]
[1742267547439,0.05138498,124.76,124.75,8.0166]
[1742267548045,363.0,124.82,124.76,8.0157]
[1742267548248,29.32,124.81,124.77,10.43614367]
[1742267548544,8.0143,124.79,124.77,10.43614367]
[1742267549244,8.07205867,124.79,124.77,10.49375801]
[1742267549849,8.0147,124.78,124.77,10.49375801]
[1742267550043,8.0147,124.78,124.77,0.05761434]
[1742267555545,8.0147,124.78,124.77,10.49375801]
[1742267556348,0.05775867,124.79,124.77,10.49375801]
[1742267556740,8.0147,124.78,124.77,10.49375801]
[1742267560855,8.07215867,124.79,124.77,10.49375801]
[1742267561353,8.0147,124.78,124.77,10.49375801]
[1742267564860,8.07185867,124.79,124.77,18.50905801]
[1742267565164,8.07185867,124.79,124.77,10.49375801]
[1742267565853,8.0147,124.78,124.77,10.49375801]
[1742267566257,8.07235867,124.79,124.77,10.49375801]
[1742267566459,0.05775867,124.79,124.78,8.0147]
[1742267566663,29.3,124.87,124.77,47.81375801]
[1742267566964,4.12292679,124.86,124.82,10.43614367]
[1742267567155,117.05556138,124.89,124.84,6.6516089]
[1742267567353,33.42007068,124.88,124.84,6.6516089]
[1742267567559,4.12007068,124.87,124.84,6.6516089]
[1742267567758,0.03267346,124.87,124.85,0.05188847]
[1742267568164,8.0096,124.86,124.85,0.05188847]
[1742267571069,8.0096,124.86,124.85,8.847e-05]
[1742267571270,12.1208353,124.86,124.85,8.847e-05]
[1742267572271,8.0096,124.86,124.85,8.847e-05]
[1742267574572,12.12031691,124.86,124.85,8.847e-05]
[1742267575372,8.0096,124.86,124.85,8.847e-05]
[1742267581576,12.11950449,124.86,124.85,8.847e-05]
[1742267581779,12.11939792,124.86,124.85,8.847e-05]
[1742267582379,8.0096,124.86,124.85,8.847e-05]
[1742267583174,12.12123685,124.86,124.85,8.847e-05]
[1742267583382,8.0096,124.86,124.85,8.847e-05]
[1742267584281,12.12279462,124.86,124.85,8.847e-05]
[1742267584870,8.0096,124.86,124.85,8.847e-05]
[1742267585073,12.12306997,124.86,124.85,8.847e-05]
[1742267586779,8.0096,124.86,124.85,8.847e-05]
[1742267589583,12.12280484,124.86,124.85,8.847e-05]
[1742267590387,8.0096,124.86,124.85,8.847e-05]
[1742267591082,12.12315799,124.86,124.85,8.847e-05]
[1742267591387,8.0096,124.86,124.85,8.847e-05]
[1742267591688,12.12390141,124.86,124.85,8.847e-05]
[1742267591986,12.12390141,124.86,124.85,6.65179029]
[1742267591987,8.0096,124.86,124.85,6.65179029]
[1742267592185,12.1221182,124.86,124.85,6.65179029]
[1742267592381,8.0096,124.86,124.85,6.65179029]
[1742267592887,14.66130182,124.86,124.85,8.847e-05]
[1742267593084,18.77391271,124.86,124.85,8.847e-05]
[1742267593383,18.77385267,124.86,124.85,8.847e-05]
[1742267593589,12.12215085,124.86,124.85,8.847e-05]
[1742267593785,8.0115,124.83,124.82,9.029e-05]
[1742267593991,4.11204734,124.83,124.8,6.65170182]
[1742267594490,8.0128,124.81,124.8,6.65170182]
[1742267596592,0.05744374,124.82,124.8,6.65170182]
[1742267596792,0.05744374,124.82,124.81,6.65170182]
[1742267598094,8.06954374,124.82,124.81,6.65170182]
[1742267598594,29.28,124.87,124.81,6.65170182]
[1742267598789,29.28,124.87,124.85,6.65170182]
[1742267598985,51.95000182,124.87,124.8,8.1833]
[1742267599191,10.76227915,124.86,124.81,6.65170182]
[1742267599395,4.11057733,124.85,124.81,6.65170182]
[1742267599690,33.39057733,124.84,124.82,5.498e-05]
[1742267599887,4.11057733,124.83,124.82,5.498e-05]
[1742267600087,12.12125665,124.83,124.82,5.498e-05]
[1742267600993,12.12226049,124.83,124.82,5.498e-05]
[1742267601188,8.0115,124.83,124.82,5.498e-05]
[1742267601493,12.12275747,124.83,124.82,5.498e-05]
[1742267602491,4.11125747,124.83,124.8,6.65170182]
[1742267602688,4.11125747,124.82,124.8,6.65170182]
[1742267602884,29.28,124.81,124.79,6.65170182]
[1742267603085,360.74100474,124.8,124.75,6.39862643]
[1742267603290,6.65170182,124.76,124.74,121.32486291]
[1742267603491,41.80590292,124.75,124.74,121.32486291]
[1742267603798,33.78930292,124.75,124.73,21.30970308]
[1742267604097,8.0192,124.71,124.7,154.70575995]
[1742267604291,18.78020474,124.71,124.7,154.70575995]
[1742267604490,49.32020474,124.71,124.7,154.70575995]
[1742267604695,18.78020474,124.71,124.7,137.62065995]
[1742267604999,38.6392,124.71,124.7,103.04965995]
[1742267606700,38.6392,124.71,124.69,0.05668626]
[1742267607194,8.0198,124.7,124.69,0.05668626]
[1742267608999,0.05562548,124.72,124.69,0.05668626]
[1742267609200,30.58,124.71,124.69,0.05668626]
[1742267609498,30.58,124.7,124.69,0.05668626]
[1742267612200,0.05562548,124.72,124.69,0.05668626]
[1742267612403,30.52,124.74,124.7,10.41778299]
[1742267612807,30.54,124.76,124.71,4.0024]
[1742267612997,76.06060851,124.78,124.72,10.41778299]
[1742267613200,30.54,124.77,124.72,10.41778299]
[1742267613398,38.5554,124.77,124.73,4.4321]
[1742267613604,0.05477962,124.76,124.73,4.48713378]
[1742267614404,8.07087962,124.76,124.73,4.48713378]
[1742267614903,8.0167,124.75,124.73,4.48713378]
[1742267615103,0.05477962,124.76,124.73,4.48713378]
[1742267615503,8.07107962,124.76,124.73,4.48713378]
[1742267615804,0.05477962,124.76,124.73,4.48713378]
[1742267616904,23.8722,124.77,124.74,10.41778299]
[1742267617205,74.9054216,124.79,124.74,10.41778299]
[1742267617505,8.0151,124.78,124.73,34.96713378]
[1742267617712,30.48,124.79,124.73,34.96713378]
[1742267618003,0.0325331,124.77,124.73,34.96713378]
[1742267618204,0.0325331,124.77,124.73,34.9121]
[1742267618506,8.0161,124.76,124.74,0.05069797]
[1742267618804,0.0325331,124.77,124.74,0.05069797]
[1742267619195,8.0166,124.75,124.74,0.05069797]
[1742267620004,8.0163,124.76,124.74,0.05069797]
[1742267620706,8.0166,124.75,124.74,0.05069797]
[1742267621000,38.4166,124.75,124.74,0.05069797]
[1742267621404,38.4166,124.75,124.74,9.797e-05]
[1742267626000,30.4,124.75,124.74,8.01739797]
[1742267626197,276.5925331,124.77,124.74,9.797e-05]
[1742267626198,30.3925331,124.77,124.74,9.797e-05]
[1742267626609,74.8179547,124.77,124.72,10.41778299]
[1742267626802,82.8333547,124.77,124.72,10.41778299]
[1742267627007,74.8179547,124.77,124.75,8.0163]
[1742267627407,30.3925331,124.77,124.75,8.0163]
[1742267627907,38.3882331,124.77,124.75,0.05100089]
[1742267628510,38.3882331,124.77,124.75,8.06760089]
[1742267628910,38.3682331,124.77,124.75,8.06760089]
[1742267633013,30.3525331,124.77,124.75,8.06760089]
[1742267633514,30.3525331,124.77,124.76,8.016]
[1742267634207,38.3679331,124.77,124.75,8.06740089]
[1742267634514,38.3679331,124.77,124.75,0.05100089]
[1742267635111,30.3525331,124.77,124.75,8.06720089]
[1742267635717,30.3525331,124.77,124.76,8.016]
[1742267636016,0.0325331,124.77,124.75,0.05100089]
[1742267636419,0.0325331,124.77,124.75,8.06710089]
[1742267638017,0.0325331,124.77,124.76,8.016]
[1742267641124,8.0479331,124.77,124.75,8.06740089]
[1742267641824,8.016,124.76,124.75,0.05100089]
[1742267642323,18.43378299,124.76,124.75,8.9e-07]
[1742267642719,22.53219284,124.76,124.75,8.9e-07]
[1742267642919,22.53221061,124.76,124.75,8.9e-07]
[1742267644120,8.0204,124.7,124.66,14.70328299]
[1742267644425,30.04,124.71,124.68,8.0206]
[1742267644726,38.0597,124.71,124.68,8.0206]
[1742267644925,38.0597,124.71,124.66,23.41758299]
[1742267645327,0.05267684,124.7,124.69,8.0202]
[1742267649528,105.42018305,124.74,124.68,20.83556598]
[1742267649724,75.46018305,124.74,124.68,10.41778299]
[1742267649930,136.87157672,124.75,124.74,8.0173]
[1742267650129,123.53557672,124.75,124.74,8.0173]
[1742267653442,0.05282509,124.76,124.74,8.0173]
[1742267653737,0.05282509,124.76,124.73,10.47026836]
[1742267653738,0.05282509,124.76,124.75,8.0166]
[1742267656042,0.05282509,124.76,124.75,18.43438299]
[1742267659040,0.05282509,124.76,124.73,22.50636836]
[1742267659232,0.05282509,124.76,124.73,14.48906836]
[1742267660638,0.05282509,124.76,124.74,8.0168]
[1742267662047,8.06882509,124.76,124.73,22.50656836]
[1742267663343,8.06882509,124.76,124.74,8.0171]
[1742267663749,0.05282509,124.76,124.74,8.0171]
[1742267665049,0.05282509,124.76,124.75,8.0166]
[1742267665248,0.05282509,124.76,124.75,14.67697293]
[1742267667847,37.6936,124.8,124.78,8.0144]
[1742267668246,29.68,124.8,124.78,8.0144]
[1742267668549,97.04510366,124.81,124.79,8.0139]
[1742267668849,126.70510366,124.81,124.79,14.67427293]
[1742267669049,126.70510366,124.81,124.79,6.7183678]
[1742267669050,89.0607337,124.81,124.79,6.7183678]
[1742267669249,89.0607337,124.81,124.8,6.66037293]
[1742267670049,0.02873004,124.81,124.8,6.66037293]
[1742267670750,8.04153004,124.81,124.8,6.66037293]
[1742267671146,8.04153004,124.81,124.79,0.05799487]
[1742267671653,8.0134,124.8,124.79,0.05799487]
[1742267672354,12.12702951,124.8,124.79,0.05799487]
[1742267675555,8.0134,124.8,124.79,0.05799487]
[1742267676852,8.04173004,124.81,124.79,0.05799487]
[1742267677157,0.02873004,124.81,124.79,0.05799487]
[1742267677954,8.0134,124.8,124.79,0.05799487]
[1742267678956,12.12874863,124.8,124.79,0.05799487]
[1742267679155,8.0134,124.8,124.79,0.05799487]
[1742267680360,12.12893379,124.8,124.79,0.05799487]
[1742267680661,8.0134,124.8,124.79,0.05799487]
[1742267683861,8.04163004,124.81,124.79,0.05799487]
[1742267684362,8.04163004,124.81,124.79,8.07179487]
[1742267684563,0.02873004,124.81,124.79,8.07179487]
[1742267684763,0.02873004,124.81,124.79,0.05799487]
[1742267685062,8.04173004,124.81,124.79,8.07179487]
[1742267686163,0.02873004,124.81,124.79,8.07179487]
[1742267686661,0.02873004,124.81,124.79,0.05799487]
[1742267686861,8.0134,124.8,124.79,0.05799487]
[1742267687253,37.4534,124.8,124.79,0.05799487]
[1742267689165,67.73434782,124.8,124.79,0.05799487]
[1742267691263,130.23686036,124.8,124.79,0.05799487]
[1742267692061,130.23686036,124.8,124.79,9.487e-05]
[1742267693065,236.32803524,124.8,124.79,9.487e-05]
[1742267693961,229.66723584,124.8,124.79,9.487e-05]
[1742267694560,185.90802124,124.8,124.79,9.487e-05]
[1742267694765,156.46802124,124.8,124.79,9.487e-05]
[1742267694965,185.82802124,124.8,124.79,9.487e-05]
[1742267696069,156.46802124,124.8,124.79,9.487e-05]
[1742267696371,12.12975186,124.8,124.79,9.487e-05]
[1742267697566,4.11635186,124.8,124.79,6.66089427]
[1742267698471,12.12975186,124.8,124.79,6.66089427]
[1742267698870,4.11635186,124.8,124.79,6.66089427]
[1742267699268,4.11635186,124.8,124.79,14.67499427]
[1742267700770,12.12975186,124.8,124.79,9.487e-05]
[1742267701165,18.79055126,124.8,124.79,9.487e-05]
[1742267703368,8.015,124.78,124.72,6.6607994]
[1742267703570,6.6607994,124.76,124.71,6.6607994]
[1742267703770,10.77715126,124.75,124.71,6.6607994]
[1742267703968,8.0186,124.72,124.71,6.6607994]
[1742267704676,8.07015136,124.73,124.71,6.6607994]
[1742267704878,8.07015136,124.73,124.72,6.6607994]
[1742267705068,8.0192,124.71,124.7,0.05542092]
[1742267705376,0.05195136,124.73,124.7,0.05542092]
[1742267705671,8.0189,124.72,124.7,0.05542092]
[1742267706277,8.07015136,124.73,124.7,0.05542092]
[1742267706676,0.05195136,124.73,124.7,0.05542092]
[1742267707071,29.32,124.77,124.71,10.41374198]
[1742267707271,29.32,124.77,124.73,10.41374198]
[1742267707576,151.83478126,124.79,124.73,39.79374198]
[1742267707778,4.11818802,124.78,124.75,10.41374198]
[1742267707974,122.45478126,124.79,124.75,10.41374198]
[1742267708279,0.03477355,124.78,124.76,0.06074478]
[1742267709178,0.03477355,124.78,124.77,18.42904198]
[1742267710786,0.03477355,124.78,124.76,37.43624478]
[1742267710975,29.41477355,124.78,124.76,0.06074478]
[1742267711283,4.11970656,124.77,124.76,0.06074478]
[1742267711881,29.41477355,124.78,124.76,0.06074478]
[1742267713080,37.42977355,124.78,124.76,0.06074478]
[1742267713783,29.41477355,124.78,124.76,0.06074478]
[1742267714489,29.41477355,124.78,124.76,8.07644478]
[1742267714989,29.41477355,124.78,124.77,8.0153]
[1742267715182,29.41477355,124.78,124.76,0.06074478]
[1742267715588,0.03477355,124.78,124.76,0.06074478]
[1742267715786,0.03477355,124.78,124.76,8.07624478]
[1742267715988,0.03477355,124.78,124.76,0.06074478]
[1742267716490,8.04967355,124.78,124.76,0.06074478]
[1742267718092,0.03477355,124.78,124.76,0.06074478]
[1742267718786,8.04947355,124.78,124.76,0.06074478]
[1742267719695,0.03477355,124.78,124.76,8.07674478]
[1742267720378,8.04947355,124.78,124.76,0.06074478]
[1742267720582,0.03477355,124.78,124.76,0.06074478]
[1742267720982,0.03477355,124.78,124.76,8.07664478]
[1742267721589,0.03477355,124.78,124.76,0.06074478]
[1742267721791,29.32,124.77,124.76,0.06074478]
[1742267722193,37.3353,124.77,124.76,0.06074478]
[1742267722489,41.45537415,124.77,124.76,0.06074478]
[1742267723491,33.44007415,124.77,124.76,0.06074478]
[1742267724289,29.32,124.77,124.76,0.06074478]
[1742267725094,29.32,124.77,124.76,8.07674478]
[1742267725994,29.35477355,124.78,124.76,8.07674478]
[1742267726193,37.36957355,124.78,124.76,8.07674478]
[1742267730003,29.35477355,124.78,124.77,14.67548769]
[1742267730301,0.03477355,124.78,124.77,14.67548769]
[1742267731300,0.03477355,124.78,124.77,6.66018769]
[1742267732001,8.04947355,124.78,124.77,6.66018769]
[1742267732305,0.03477355,124.78,124.77,6.66018769]
[1742267732506,0.03477355,124.78,124.77,14.67548769]
[1742267734402,0.03477355,124.78,124.76,0.06074478]
[1742267734600,0.03477355,124.78,124.76,6.72093247]
[1742267735004,0.03477355,124.78,124.77,8.0153]
[1742267735904,44.54445812,124.82,124.76,36.04093247]
[1742267736101,44.54445812,124.82,124.8,6.66018769]
[1742267736804,44.54445812,124.82,124.81,8.0128]
[1742267737405,44.54445812,124.82,124.81,12.2066]
[1742267737907,44.54445812,124.82,124.81,4.1938]
[1742267738499,8.0115,124.83,124.81,12.2066]
[1742267738701,8.0115,124.83,124.82,6.66018769]
[1742267738903,8.0103,124.85,124.82,14.67208769]
[1742267739104,8.0103,124.85,124.82,6.66018769]
[1742267739405,8.0103,124.85,124.82,6.71240559]
[1742267739606,29.32,124.86,124.84,6.66018769]
[1742267740711,8.0102,124.85,124.84,6.66018769]
[1742267741302,37.3298,124.86,124.84,6.66018769]
[1742267741806,37.3298,124.86,124.84,6.71967207]
[1742267742810,8.0091,124.87,124.84,14.73017207]
[1742267743012,37.3291,124.87,124.84,14.73017207]
[1742267743309,19.31538769,124.89,124.84,14.73017207]
[1742267743503,29.32,124.88,124.84,14.73017207]
[1742267743906,8.0093,124.87,124.84,14.73017207]
[1742267744309,29.32,124.87,124.84,14.73017207]
[1742267744711,8.0099,124.86,124.84,14.73017207]
[1742267746511,29.32,124.87,124.84,6.71967207]
[1742267746905,37.3293,124.87,124.84,6.71967207]
[1742267747412,29.32,124.87,124.84,6.71967207]
[1742267747614,29.32,124.87,124.86,6.66018769]
[1742267747813,37.329,124.87,124.86,6.66018769]
[1742267748511,8.0086,124.88,124.86,6.66018769]
[1742267748711,37.3286,124.88,124.86,6.66018769]
[1742267749009,37.3286,124.88,124.86,6.71137891]
[1742267749913,8.0086,124.88,124.86,6.71137891]
[1742267750114,37.3286,124.88,124.86,14.72087891]
[1742267750309,8.0089,124.87,124.86,6.71137891]
[1742267751211,37.3287,124.88,124.86,6.71137891]
[1742267751411,37.3287,124.88,124.86,14.72087891]
[1742267755111,29.3,124.88,124.86,14.72087891]
[1742267756511,29.3,124.88,124.86,0.05119122]
[1742267757311,8.0089,124.87,124.86,0.05119122]
[1742267757513,12.10610594,124.87,124.86,0.05119122]
[1742267757818,8.0089,124.87,124.86,0.05119122]
[1742267758012,12.10651135,124.87,124.86,0.05119122]
[1742267758209,8.0119,124.83,124.82,6.66018769]
[1742267758414,29.3,124.84,124.81,6.66018769]
[1742267758916,8.0121,124.83,124.81,6.66018769]
[1742267759305,29.3,124.84,124.81,6.71572969]
[1742267759513,0.05119122,124.83,124.82,8.0118]
[1742267760817,0.05119122,124.83,124.82,6.66018769]
[1742267761024,8.06269122,124.83,124.82,6.66018769]
[1742267761410,0.05119122,124.83,124.82,6.66018769]
[1742267763519,29.3,124.86,124.82,6.66018769]
[1742267763720,29.3,124.87,124.85,6.66018769]
[1742267763921,8.0101,124.86,124.85,6.66018769]
[1742267764226,29.3,124.87,124.83,6.66018769]
[1742267764418,8.0124,124.82,124.8,8.0133]
[1742267764617,29.3,124.83,124.81,6.66018769]